[Event "*** Titled Tuesday Blitz"]
[Site "Chess.com"]
[Date "2018.06.05"]
[Round "5"]
[White "chesstatour"]
[Black "Eliwood44"]
[Result "0-1"]
[WhiteElo "2044"]
[BlackElo "2184"]
[TimeControl "180+2"]
[EndTime "14:11:08 PDT"]
[Termination "Eliwood44 won on time"]

1. c4 {[%clk 0:03:01.9]} 1... Nf6 {[%clk 0:02:58.4]} 2. Nc3 {[%clk 0:02:57.7]}
2... e6 {[%clk 0:02:59.4]} 3. e4 {[%clk 0:02:57.6]} 3... d5 {[%clk 0:03:00.3]}
4. e5 {[%clk 0:02:58.9]} 4... Nfd7 {[%clk 0:02:59.8]} 5. cxd5 {[%clk 0:02:59.7]}
5... Nxe5 {[%clk 0:02:56.9]} 6. d4 {[%clk 0:02:58.8]} 6... Ng6 {[%clk
0:02:57.2]} 7. dxe6 {[%clk 0:03:00.1]} 7... Bxe6 {[%clk 0:02:58.6]} 8. d5 {[%clk
0:03:01.4]} 8... Bf5 {[%clk 0:02:57.7]} 9. Nge2 {[%clk 0:03:02.5]} 9... Bc5
{[%clk 0:02:57.3]} 10. Ng3 {[%clk 0:02:53.3]} 10... Qf6 {[%clk 0:02:51]} 11.
Bb5+ {[%clk 0:01:27.5]} 11... c6 {[%clk 0:02:40.6]} 12. Qe2+ {[%clk 0:01:16.7]}
12... Ne7 {[%clk 0:02:35.8]} 13. Nxf5 {[%clk 0:00:54.6]} 13... Qxf5 {[%clk
0:02:19.1]} 14. Bd3 {[%clk 0:00:43.9]} 14... Qf6 {[%clk 0:02:17.9]} 15. Ne4
{[%clk 0:00:32.9]} 15... Qd4 {[%clk 0:02:12.1]} 16. Be3 {[%clk 0:00:15.5]} 16...
Bb4+ {[%clk 0:02:09.8]} 17. Kf1 {[%clk 0:00:13.5]} 17... Qxd5 {[%clk 0:02:09.2]}
18. Bc4 {[%clk 0:00:09]} 18... Qxe4 {[%clk 0:02:08]} 19. a3 {[%clk 0:00:09.2]}
19... Bd6 {[%clk 0:02:07.7]} 20. f3 {[%clk 0:00:07.4]} 20... Qg6 {[%clk
0:02:05.3]} 21. Rd1 {[%clk 0:00:07]} 21... O-O {[%clk 0:02:04.4]} 22. Bd3 {[%clk
0:00:06.4]} 22... Qf6 {[%clk 0:02:04.9]} 23. Qf2 {[%clk 0:00:06]} 23... Na6
{[%clk 0:02:01.3]} 24. g4 {[%clk 0:00:06.1]} 24... Ng6 {[%clk 0:01:58.9]} 25. g5
{[%clk 0:00:05.8]} 25... Qe7 {[%clk 0:01:59.9]} 26. h4 {[%clk 0:00:05.1]} 26...
Rfe8 {[%clk 0:02:00.7]} 27. h5 {[%clk 0:00:05]} 27... Qxe3 {[%clk 0:01:58.4]}
0-1

[Event "*** Titled Tuesday Blitz"]
[Site "Chess.com"]
[Date "2018.06.05"]
[Round "5"]
[White "TBergh98"]
[Black "nochewycandy"]
[Result "0-1"]
[WhiteElo "2186"]
[BlackElo "2111"]
[TimeControl "180+2"]
[EndTime "14:11:36 PDT"]
[Termination "nochewycandy won by resignation"]

1. d4 {[%clk 0:03:01.9]} 1... Nf6 {[%clk 0:03:00.2]} 2. Bg5 {[%clk 0:03:02.6]}
2... Ne4 {[%clk 0:03:01.1]} 3. Bf4 {[%clk 0:03:03.7]} 3... c5 {[%clk 0:03:02]}
4. f3 {[%clk 0:03:04.5]} 4... Nf6 {[%clk 0:03:03.4]} 5. d5 {[%clk 0:03:05.3]}
5... d6 {[%clk 0:03:01.9]} 6. Nc3 {[%clk 0:03:06.3]} 6... e6 {[%clk 0:03:03.2]}
7. e4 {[%clk 0:03:04]} 7... e5 {[%clk 0:03:04.4]} 8. Be3 {[%clk 0:03:04.7]} 8...
a6 {[%clk 0:03:05]} 9. a4 {[%clk 0:03:05.3]} 9... g6 {[%clk 0:03:03]} 10. Bc4
{[%clk 0:03:00.3]} 10... h5 {[%clk 0:03:02.6]} 11. Qd2 {[%clk 0:02:58.4]} 11...
Nbd7 {[%clk 0:02:53.5]} 12. Bg5 {[%clk 0:02:55.8]} 12... Be7 {[%clk 0:02:54.4]}
13. h4 {[%clk 0:02:54.7]} 13... Ng8 {[%clk 0:02:49.6]} 14. Nge2 {[%clk 0:02:42]}
14... Bxg5 {[%clk 0:02:50.1]} 15. hxg5 {[%clk 0:02:43.3]} 15... Rb8 {[%clk
0:02:47.6]} 16. Qd3 {[%clk 0:02:31.7]} 16... Qxg5 {[%clk 0:02:47.8]} 17. O-O
{[%clk 0:02:31.6]} 17... h4 {[%clk 0:02:42.4]} 18. f4 {[%clk 0:02:30.1]} 18...
Qe7 {[%clk 0:02:43.6]} 19. f5 {[%clk 0:02:30.6]} 19... Qg5 {[%clk 0:02:38]} 20.
fxg6 {[%clk 0:02:24.5]} 20... fxg6 {[%clk 0:02:39.9]} 21. Rf3 {[%clk 0:02:23.2]}
21... Ngf6 {[%clk 0:02:28.3]} 22. Raf1 {[%clk 0:02:22.7]} 22... O-O {[%clk
0:02:29.1]} 23. Kh1 {[%clk 0:02:07.8]} 23... Nh7 {[%clk 0:02:29.4]} 24. Ng1
{[%clk 0:02:08]} 24... Ndf6 {[%clk 0:02:26.8]} 25. Nh3 {[%clk 0:02:08.2]} 25...
Qh6 {[%clk 0:02:20.6]} 26. Nd1 {[%clk 0:01:52.9]} 26... g5 {[%clk 0:02:14.8]}
27. R3f2 {[%clk 0:01:38.2]} 27... Bd7 {[%clk 0:02:11.2]} 28. a5 {[%clk
0:01:35.5]} 28... g4 {[%clk 0:02:07.7]} 29. Ng1 {[%clk 0:01:35.8]} 29... Ng5
{[%clk 0:02:05.8]} 30. Qe3 {[%clk 0:01:18.5]} 30... Qg6 {[%clk 0:02:02.9]} 31.
Bd3 {[%clk 0:01:17.7]} 31... c4 {[%clk 0:02:00.8]} 32. Bxc4 {[%clk 0:01:17.5]}
32... Nfxe4 {[%clk 0:01:58.2]} 33. Rxf8+ {[%clk 0:01:15.8]} 33... Rxf8 {[%clk
0:01:57.3]} 34. Rxf8+ {[%clk 0:01:15.9]} 34... Kxf8 {[%clk 0:01:59.2]} 35. Ne2
{[%clk 0:01:16]} 35... Qf6 {[%clk 0:01:50.5]} 36. Ndc3 {[%clk 0:00:58.5]} 36...
Qf1+ {[%clk 0:01:49.1]} 37. Ng1 {[%clk 0:00:58.8]} 37... Nf2+ {[%clk 0:01:47.1]}
38. Kh2 {[%clk 0:00:59.1]} 38... g3+ {[%clk 0:01:47.2]} 39. Qxg3 {[%clk
0:00:58.6]} 39... hxg3+ {[%clk 0:01:49.1]} 40. Kxg3 {[%clk 0:00:58.9]} 40...
Nfe4+ {[%clk 0:01:50.3]} 41. Kh4 {[%clk 0:00:59.3]} 41... Qxc4 {[%clk
0:01:50.5]} 42. Kh5 {[%clk 0:01:00.5]} 42... Nxc3 {[%clk 0:01:50.5]} 43. Kg6
{[%clk 0:01:02.3]} 43... Qf4 {[%clk 0:01:51.1]} 44. Nf3 {[%clk 0:01:04.2]} 44...
Nxf3 {[%clk 0:01:51]} 45. g4 {[%clk 0:01:04.7]} 45... Qxg4+ {[%clk 0:01:51.9]}
0-1

[Event "*** Titled Tuesday Blitz"]
[Site "Chess.com"]
[Date "2018.06.05"]
[Round "5"]
[White "Blackmind96"]
[Black "Korchmar_Vasiliy"]
[Result "0-1"]
[WhiteElo "2555"]
[BlackElo "2707"]
[TimeControl "180+2"]
[EndTime "14:11:41 PDT"]
[Termination "Korchmar_Vasiliy won by resignation"]

1. d4 {[%clk 0:03:01.9]} 1... Nf6 {[%clk 0:02:54]} 2. c4 {[%clk 0:03:02.1]} 2...
g6 {[%clk 0:02:55.2]} 3. Nc3 {[%clk 0:03:03.1]} 3... d5 {[%clk 0:02:55.6]} 4.
Nf3 {[%clk 0:03:03.6]} 4... Bg7 {[%clk 0:02:55.5]} 5. Bg5 {[%clk 0:03:05]} 5...
dxc4 {[%clk 0:02:54.2]} 6. e4 {[%clk 0:03:04.2]} 6... c5 {[%clk 0:02:37.9]} 7.
d5 {[%clk 0:03:03.9]} 7... b5 {[%clk 0:02:34]} 8. d6 {[%clk 0:03:04.2]} 8... O-O
{[%clk 0:02:26.2]} 9. dxe7 {[%clk 0:02:53.9]} 9... Qxe7 {[%clk 0:02:26.4]} 10.
e5 {[%clk 0:02:53.9]} 10... Qe6 {[%clk 0:02:12.5]} 11. Qe2 {[%clk 0:02:25.1]}
11... Nd5 {[%clk 0:02:04.8]} 12. Nxb5 {[%clk 0:02:21.8]} 12... Nc6 {[%clk
0:02:02.8]} 13. Qxc4 {[%clk 0:02:21.1]} 13... Nxe5 {[%clk 0:02:01.2]} 14. Qe4
{[%clk 0:01:46.1]} 14... Nxf3+ {[%clk 0:01:40.8]} 15. gxf3 {[%clk 0:01:48]}
15... Qc6 {[%clk 0:01:42.5]} 16. O-O-O {[%clk 0:01:47.3]} 16... Be6 {[%clk
0:01:43.4]} 17. Bc4 {[%clk 0:01:40.2]} 17... Rab8 {[%clk 0:01:40.1]} 18. a4
{[%clk 0:01:10.4]} 18... a6 {[%clk 0:01:40.1]} 19. Rxd5 {[%clk 0:01:08.7]} 19...
axb5 {[%clk 0:01:37]} 20. axb5 {[%clk 0:01:06.6]} 20... Qa8 {[%clk 0:01:35.8]}
21. Kc2 {[%clk 0:00:18.3]} 21... Rfe8 {[%clk 0:01:09]} 22. Rhd1 {[%clk
0:00:17.5]} 22... Bf5 {[%clk 0:01:06.9]} 23. Rxf5 {[%clk 0:00:15.8]} 23... Rxe4
{[%clk 0:01:08.1]} 0-1

[Event "*** Titled Tuesday Blitz"]
[Site "Chess.com"]
[Date "2018.06.05"]
[Round "5"]
[White "JaimeSantosLatasa"]
[Black "dretch"]
[Result "1-0"]
[WhiteElo "2657"]
[BlackElo "2730"]
[TimeControl "180+2"]
[EndTime "14:11:42 PDT"]
[Termination "JaimeSantosLatasa won on time"]

1. d4 {[%clk 0:03:01.9]} 1... d5 {[%clk 0:03:00.6]} 2. c4 {[%clk 0:02:59.3]}
2... c6 {[%clk 0:03:01.6]} 3. Nf3 {[%clk 0:02:56.4]} 3... Nf6 {[%clk 0:03:02.6]}
4. e3 {[%clk 0:02:57.2]} 4... Bg4 {[%clk 0:02:53.4]} 5. h3 {[%clk 0:02:56.5]}
5... Bxf3 {[%clk 0:02:53.6]} 6. Qxf3 {[%clk 0:02:58.4]} 6... Nbd7 {[%clk
0:02:51.6]} 7. Nc3 {[%clk 0:02:57.9]} 7... e6 {[%clk 0:02:52.6]} 8. Bd2 {[%clk
0:02:58.7]} 8... Bb4 {[%clk 0:02:53.1]} 9. Bd3 {[%clk 0:02:55.7]} 9... O-O
{[%clk 0:02:35.7]} 10. a3 {[%clk 0:02:54.5]} 10... Ba5 {[%clk 0:02:34.4]} 11.
O-O {[%clk 0:02:14.4]} 11... e5 {[%clk 0:02:28.9]} 12. cxd5 {[%clk 0:02:09.8]}
12... cxd5 {[%clk 0:02:29.8]} 13. Bc2 {[%clk 0:02:03.2]} 13... Rc8 {[%clk
0:02:18.1]} 14. Rac1 {[%clk 0:01:59.2]} 14... Re8 {[%clk 0:02:10.7]} 15. b4
{[%clk 0:01:53.2]} 15... Bb6 {[%clk 0:02:08.4]} 16. Nxd5 {[%clk 0:01:47.5]}
16... Nxd5 {[%clk 0:01:23]} 17. Qxd5 {[%clk 0:01:49.4]} 17... exd4 {[%clk
0:01:16.1]} 18. exd4 {[%clk 0:01:40]} 18... Nf6 {[%clk 0:01:13.7]} 19. Qxb7
{[%clk 0:01:34]} 19... Bxd4 {[%clk 0:00:52.6]} 20. Bb3 {[%clk 0:01:22.4]} 20...
Rxc1 {[%clk 0:00:10.2]} 21. Qxf7+ {[%clk 0:01:17.1]} 21... Kh8 {[%clk 0:00:11]}
22. Bxc1 {[%clk 0:01:19]} 22... Bxf2+ {[%clk 0:00:04.6]} 23. Rxf2 {[%clk
0:01:14.1]} 23... Re1+ {[%clk 0:00:04]} 24. Rf1 {[%clk 0:01:11.2]} 24... Qd4+
{[%clk 0:00:03.8]} 25. Kh2 {[%clk 0:01:08.6]} 1-0

[Event "*** Titled Tuesday Blitz"]
[Site "Chess.com"]
[Date "2018.06.05"]
[Round "5"]
[White "Orest_Vovk"]
[Black "Caterpiller35"]
[Result "0-1"]
[WhiteElo "2390"]
[BlackElo "2359"]
[TimeControl "180+2"]
[EndTime "14:11:52 PDT"]
[Termination "Caterpiller35 won by checkmate"]

1. g4 {[%clk 0:03:01.8]} 1... d5 {[%clk 0:02:57.2]} 2. h3 {[%clk 0:03:01.7]}
2... c6 {[%clk 0:02:57.8]} 3. Bg2 {[%clk 0:03:03.1]} 3... e5 {[%clk 0:02:58.7]}
4. d4 {[%clk 0:03:04.5]} 4... h5 {[%clk 0:02:46.5]} 5. c4 {[%clk 0:03:04.7]}
5... dxc4 {[%clk 0:02:44.1]} 6. d5 {[%clk 0:02:57.3]} 6... hxg4 {[%clk
0:02:41.5]} 7. Nc3 {[%clk 0:02:55.5]} 7... gxh3 {[%clk 0:02:40.7]} 8. Nxh3
{[%clk 0:02:51.2]} 8... Nf6 {[%clk 0:02:38.1]} 9. Bg5 {[%clk 0:02:47.3]} 9...
Qb6 {[%clk 0:02:24.7]} 10. Qd2 {[%clk 0:02:40.9]} 10... Nxd5 {[%clk 0:02:13.4]}
11. Nxd5 {[%clk 0:02:31.7]} 11... cxd5 {[%clk 0:02:10.6]} 12. Qxd5 {[%clk
0:02:31.2]} 12... Nc6 {[%clk 0:02:01.8]} 13. O-O-O {[%clk 0:02:23.1]} 13... Be6
{[%clk 0:02:01]} 14. Qe4 {[%clk 0:02:10.6]} 14... c3 {[%clk 0:01:45.5]} 15. b3
{[%clk 0:01:54.3]} 15... Ba3+ {[%clk 0:01:19.5]} 16. Kc2 {[%clk 0:01:45.6]}
16... Nb4+ {[%clk 0:01:16]} 17. Kxc3 {[%clk 0:01:45.5]} 17... Nxa2+ {[%clk
0:00:49.8]} 18. Kd2 {[%clk 0:01:37.6]} 18... Bb4+ {[%clk 0:00:47.9]} 19. Kd3
{[%clk 0:01:04]} 19... f6 {[%clk 0:00:39.3]} 20. Qxb7 {[%clk 0:00:38]} 20...
Qd4+ {[%clk 0:00:26.1]} 21. Kc2 {[%clk 0:00:32.1]} 21... Qc3+ {[%clk 0:00:27.3]}
22. Kb1 {[%clk 0:00:33.5]} 22... Qxb3+ {[%clk 0:00:27.7]} 23. Ka1 {[%clk
0:00:34.7]} 23... Bc3# {[%clk 0:00:28.1]} 0-1

[Event "*** Titled Tuesday Blitz"]
[Site "Chess.com"]
[Date "2018.06.05"]
[Round "5"]
[White "kleinebeer98"]
[Black "Muracle"]
[Result "1-0"]
[WhiteElo "2481"]
[BlackElo "2446"]
[TimeControl "180+2"]
[EndTime "14:12:02 PDT"]
[Termination "kleinebeer98 won by resignation"]

1. e4 {[%clk 0:03:01.4]} 1... c5 {[%clk 0:02:56.9]} 2. Nf3 {[%clk 0:03:02]} 2...
Nc6 {[%clk 0:02:57.6]} 3. c3 {[%clk 0:03:02.4]} 3... d6 {[%clk 0:02:55.1]} 4. d4
{[%clk 0:03:03.3]} 4... Nf6 {[%clk 0:02:55.9]} 5. Bd3 {[%clk 0:03:01.2]} 5... e5
{[%clk 0:02:55.4]} 6. h3 {[%clk 0:02:53.6]} 6... h6 {[%clk 0:02:39.7]} 7. O-O
{[%clk 0:02:53.4]} 7... exd4 {[%clk 0:02:33.9]} 8. cxd4 {[%clk 0:02:55.3]} 8...
cxd4 {[%clk 0:02:35.3]} 9. Nbd2 {[%clk 0:02:52.3]} 9... Be7 {[%clk 0:02:31.2]}
10. Nb3 {[%clk 0:02:49.1]} 10... O-O {[%clk 0:02:31.5]} 11. Nbxd4 {[%clk
0:02:42.8]} 11... Ne5 {[%clk 0:02:32.8]} 12. Bf4 {[%clk 0:02:37.2]} 12... Nxd3
{[%clk 0:02:27.5]} 13. Qxd3 {[%clk 0:02:39.1]} 13... Nd7 {[%clk 0:02:28.5]} 14.
Nf5 {[%clk 0:02:36.8]} 14... Nc5 {[%clk 0:02:24.8]} 15. Nxe7+ {[%clk 0:02:34.8]}
15... Qxe7 {[%clk 0:02:26.7]} 16. Qxd6 {[%clk 0:02:32.9]} 16... Qxe4 {[%clk
0:02:26.7]} 17. Rfe1 {[%clk 0:02:22.8]} 17... Qb4 {[%clk 0:01:33.1]} 18. a3
{[%clk 0:01:44.3]} 18... Qa4 {[%clk 0:01:30.6]} 19. Bxh6 {[%clk 0:01:31.6]}
19... Nb3 {[%clk 0:01:27.1]} 20. Qg3 {[%clk 0:01:23.8]} 20... Bg4 {[%clk
0:01:19.7]} 21. Bxg7 {[%clk 0:01:17.7]} 21... Kxg7 {[%clk 0:01:13.9]} 22. Rad1
{[%clk 0:01:18.6]} 22... Rad8 {[%clk 0:01:06.8]} 23. Qe5+ {[%clk 0:01:17.1]}
23... f6 {[%clk 0:00:58]} 24. Qg3 {[%clk 0:00:45.5]} 24... Rxd1 {[%clk
0:00:44.1]} 25. Rxd1 {[%clk 0:00:47.4]} 25... Nc5 {[%clk 0:00:45.1]} 26. Rd4
{[%clk 0:00:46.9]} 26... Qb3 {[%clk 0:00:39.3]} 27. Rxg4+ {[%clk 0:00:46]} 27...
Kf7 {[%clk 0:00:39.1]} 28. Qc7+ {[%clk 0:00:46.8]} 1-0

[Event "*** Titled Tuesday Blitz"]
[Site "Chess.com"]
[Date "2018.06.05"]
[Round "5"]
[White "ENEASZ"]
[Black "gmjlh"]
[Result "0-1"]
[WhiteElo "2513"]
[BlackElo "2626"]
[TimeControl "180+2"]
[EndTime "14:12:02 PDT"]
[Termination "gmjlh won by checkmate"]

1. e4 {[%clk 0:03:01.9]} 1... e5 {[%clk 0:02:59]} 2. Nf3 {[%clk 0:03:02.7]} 2...
Nc6 {[%clk 0:02:58.5]} 3. Bc4 {[%clk 0:03:03.7]} 3... Nf6 {[%clk 0:02:58.4]} 4.
Ng5 {[%clk 0:02:49.7]} 4... d5 {[%clk 0:02:56.1]} 5. exd5 {[%clk 0:02:51.6]}
5... Na5 {[%clk 0:02:56.5]} 6. Bb5+ {[%clk 0:02:52.3]} 6... c6 {[%clk
0:02:57.3]} 7. dxc6 {[%clk 0:02:54.2]} 7... bxc6 {[%clk 0:02:58.2]} 8. Be2
{[%clk 0:02:55.1]} 8... h6 {[%clk 0:02:53.6]} 9. Nf3 {[%clk 0:02:56.1]} 9... e4
{[%clk 0:02:54]} 10. Ne5 {[%clk 0:02:57.2]} 10... Bc5 {[%clk 0:02:55.3]} 11. c3
{[%clk 0:02:51.6]} 11... Bd6 {[%clk 0:02:55.7]} 12. Ng4 {[%clk 0:02:47.6]} 12...
Nxg4 {[%clk 0:02:38.5]} 13. Bxg4 {[%clk 0:02:49.5]} 13... Qg5 {[%clk 0:02:35.6]}
14. h3 {[%clk 0:02:14.9]} 14... h5 {[%clk 0:02:35.3]} 15. d4 {[%clk 0:02:14.8]}
15... Qg6 {[%clk 0:02:34.3]} 16. Bxc8 {[%clk 0:02:12.2]} 16... Qxg2 {[%clk
0:02:33.8]} 17. Bd7+ {[%clk 0:02:10.2]} 17... Kxd7 {[%clk 0:02:32.9]} 18. Rf1
{[%clk 0:02:12.1]} 18... Rae8 {[%clk 0:02:18]} 19. Be3 {[%clk 0:01:44.3]} 19...
f5 {[%clk 0:01:56.2]} 20. d5 {[%clk 0:00:46.8]} 20... f4 {[%clk 0:01:56.7]} 21.
dxc6+ {[%clk 0:00:47.6]} 21... Kc7 {[%clk 0:01:38.9]} 22. Qa4 {[%clk 0:00:43.3]}
22... Nxc6 {[%clk 0:01:36.3]} 23. Bxa7 {[%clk 0:00:30.8]} 23... e3 {[%clk
0:01:34.2]} 24. Na3 {[%clk 0:00:28.2]} 24... e2 {[%clk 0:01:01.8]} 25. Nb5+
{[%clk 0:00:17.6]} 25... Kd7 {[%clk 0:01:02.4]} 26. Rg1 {[%clk 0:00:05.6]} 26...
Qxg1+ {[%clk 0:01:03.1]} 27. Kd2 {[%clk 0:00:07.5]} 27... e1=Q+ {[%clk
0:01:04.7]} 28. Kc2 {[%clk 0:00:08]} 28... Qxa1 {[%clk 0:01:03.3]} 29. Nd4
{[%clk 0:00:07.3]} 29... Qgd1# {[%clk 0:01:04.6]} 0-1

[Event "*** Titled Tuesday Blitz"]
[Site "Chess.com"]
[Date "2018.06.05"]
[Round "5"]
[White "Shaman91"]
[Black "Muguet7"]
[Result "1-0"]
[WhiteElo "2558"]
[BlackElo "2319"]
[TimeControl "180+2"]
[EndTime "14:12:03 PDT"]
[Termination "Shaman91 won by resignation"]

1. e4 {[%clk 0:02:44.6]} 1... c5 {[%clk 0:03:00.2]} 2. Nc3 {[%clk 0:02:43.7]}
2... d6 {[%clk 0:03:00.3]} 3. f4 {[%clk 0:02:44.1]} 3... g6 {[%clk 0:03:00]} 4.
Nf3 {[%clk 0:02:44.7]} 4... Bg7 {[%clk 0:02:59.1]} 5. Bb5+ {[%clk 0:02:45.9]}
5... Bd7 {[%clk 0:02:56.6]} 6. Bc4 {[%clk 0:02:46.7]} 6... Nc6 {[%clk
0:02:55.6]} 7. O-O {[%clk 0:02:47.2]} 7... e6 {[%clk 0:02:56.2]} 8. d3 {[%clk
0:02:46.1]} 8... Nge7 {[%clk 0:02:56.5]} 9. f5 {[%clk 0:02:47.2]} 9... exf5
{[%clk 0:02:52.8]} 10. Qe1 {[%clk 0:02:47.3]} 10... Ne5 {[%clk 0:02:43.7]} 11.
exf5 {[%clk 0:02:17.7]} 11... Bxf5 {[%clk 0:02:29]} 12. Bg5 {[%clk 0:02:04.6]}
12... f6 {[%clk 0:02:22.5]} 13. Nxe5 {[%clk 0:01:53.6]} 13... dxe5 {[%clk
0:02:20.5]} 14. Be3 {[%clk 0:01:54.7]} 14... b6 {[%clk 0:01:53.9]} 15. Qh4
{[%clk 0:01:38.3]} 15... a6 {[%clk 0:01:38]} 16. a4 {[%clk 0:01:36.6]} 16... Qd7
{[%clk 0:01:35.5]} 17. Ne4 {[%clk 0:01:33.7]} 17... Qc6 {[%clk 0:01:25.3]} 18.
Bh6 {[%clk 0:01:11.7]} 18... g5 {[%clk 0:01:07.2]} 19. Qh5+ {[%clk 0:00:59.4]}
19... Bg6 {[%clk 0:01:07.4]} 20. Qh3 {[%clk 0:01:00.7]} 20... Bf5 {[%clk
0:00:52.3]} 21. Rxf5 {[%clk 0:00:49.7]} 21... Nxf5 {[%clk 0:00:53.2]} 22. Qxf5
{[%clk 0:00:49.9]} 22... Bxh6 {[%clk 0:00:53.7]} 23. Nxf6+ {[%clk 0:00:50.8]}
23... Kd8 {[%clk 0:00:52]} 24. Bd5 {[%clk 0:00:47.9]} 24... Qc8 {[%clk
0:00:51.1]} 25. Qxe5 {[%clk 0:00:48.3]} 25... Ra7 {[%clk 0:00:51.7]} 26. Qd6+
{[%clk 0:00:45.4]} 26... Rd7 {[%clk 0:00:49.5]} 27. Nxd7 {[%clk 0:00:46.1]}
27... Qxd7 {[%clk 0:00:50.1]} 28. Qxb6+ {[%clk 0:00:36.7]} 28... Kc8 {[%clk
0:00:46.5]} 29. Be6 {[%clk 0:00:36]} 1-0

[Event "*** Titled Tuesday Blitz"]
[Site "Chess.com"]
[Date "2018.06.05"]
[Round "5"]
[White "bugsbunny444"]
[Black "Angry_Serb"]
[Result "1-0"]
[WhiteElo "2337"]
[BlackElo "2467"]
[TimeControl "180+2"]
[EndTime "14:12:21 PDT"]
[Termination "bugsbunny444 won by resignation"]

1. Nf3 {[%clk 0:03:01.9]} 1... Nf6 {[%clk 0:02:59.8]} 2. c4 {[%clk 0:03:03.3]}
2... b6 {[%clk 0:02:59.7]} 3. g3 {[%clk 0:03:03.9]} 3... Bb7 {[%clk 0:03:00.7]}
4. Bg2 {[%clk 0:03:05.8]} 4... c5 {[%clk 0:03:02.4]} 5. O-O {[%clk 0:03:07]}
5... e6 {[%clk 0:02:55.4]} 6. b3 {[%clk 0:03:08.1]} 6... Be7 {[%clk 0:02:51.3]}
7. Bb2 {[%clk 0:03:09.6]} 7... Nc6 {[%clk 0:02:51]} 8. e3 {[%clk 0:03:06.7]}
8... O-O {[%clk 0:02:46.7]} 9. Nc3 {[%clk 0:03:06.8]} 9... d5 {[%clk 0:02:47]}
10. cxd5 {[%clk 0:03:07.1]} 10... Nxd5 {[%clk 0:02:48.9]} 11. Nxd5 {[%clk
0:03:07.9]} 11... Qxd5 {[%clk 0:02:49.5]} 12. d4 {[%clk 0:03:09.3]} 12... cxd4
{[%clk 0:02:48.4]} 13. Nxd4 {[%clk 0:03:10.3]} 13... Qxg2+ {[%clk 0:02:40.2]}
14. Kxg2 {[%clk 0:03:12.2]} 14... Nxd4+ {[%clk 0:02:41.7]} 15. f3 {[%clk
0:03:13.7]} 15... Nf5 {[%clk 0:02:29.6]} 16. Qe2 {[%clk 0:02:54.6]} 16... Bc5
{[%clk 0:02:20.8]} 17. Bc1 {[%clk 0:02:22.8]} 17... a5 {[%clk 0:02:17.9]} 18.
Rd1 {[%clk 0:02:13.1]} 18... a4 {[%clk 0:02:11]} 19. b4 {[%clk 0:01:53.5]} 19...
Bxb4 {[%clk 0:02:09.5]} 20. e4 {[%clk 0:01:54.3]} 20... Ne7 {[%clk 0:01:59.9]}
21. a3 {[%clk 0:01:46.2]} 21... Ba6 {[%clk 0:01:57.4]} 22. Qf2 {[%clk
0:01:32.7]} 22... Bc3 {[%clk 0:01:58.4]} 23. Bb2 {[%clk 0:01:30.1]} 23... Ba5
{[%clk 0:01:59.2]} 24. Rac1 {[%clk 0:01:10.9]} 24... Rfd8 {[%clk 0:01:54]} 25.
Rxd8+ {[%clk 0:00:45]} 25... Rxd8 {[%clk 0:01:55.9]} 26. Bc3 {[%clk 0:00:46.6]}
26... h5 {[%clk 0:01:06.3]} 27. Bxa5 {[%clk 0:00:44.2]} 27... bxa5 {[%clk
0:01:08.2]} 28. Qa7 {[%clk 0:00:30.5]} 28... Rd2+ {[%clk 0:00:50]} 29. Kg1
{[%clk 0:00:30.3]} 29... Be2 {[%clk 0:00:43.3]} 30. Qxe7 {[%clk 0:00:25.2]}
30... Bxf3 {[%clk 0:00:44]} 31. Rc7 {[%clk 0:00:20.9]} 1-0

[Event "*** Titled Tuesday Blitz"]
[Site "Chess.com"]
[Date "2018.06.05"]
[Round "5"]
[White "leoo2001"]
[Black "akashcheck"]
[Result "1-0"]
[WhiteElo "2307"]
[BlackElo "2162"]
[TimeControl "180+2"]
[EndTime "14:12:26 PDT"]
[Termination "leoo2001 won by resignation"]

1. e4 {[%clk 0:03:01.9]} 1... e5 {[%clk 0:03:01]} 2. Bc4 {[%clk 0:03:00.9]} 2...
Nf6 {[%clk 0:03:01.1]} 3. d3 {[%clk 0:03:01.9]} 3... Nc6 {[%clk 0:03:02.3]} 4.
Nc3 {[%clk 0:03:02.2]} 4... Bb4 {[%clk 0:03:02.7]} 5. Ne2 {[%clk 0:03:02.4]}
5... d5 {[%clk 0:03:02.6]} 6. exd5 {[%clk 0:02:58.6]} 6... Nxd5 {[%clk
0:03:04.5]} 7. O-O {[%clk 0:02:59.7]} 7... Nxc3 {[%clk 0:03:05.4]} 8. Nxc3
{[%clk 0:02:58.3]} 8... O-O {[%clk 0:03:05.1]} 9. f4 {[%clk 0:02:59.2]} 9... Be6
{[%clk 0:02:47.1]} 10. Bxe6 {[%clk 0:02:53.6]} 10... fxe6 {[%clk 0:02:49]} 11.
Ne4 {[%clk 0:02:54.8]} 11... exf4 {[%clk 0:02:45.9]} 12. Bxf4 {[%clk 0:02:54.9]}
12... e5 {[%clk 0:02:46.8]} 13. Be3 {[%clk 0:02:55]} 13... Qd5 {[%clk 0:02:42]}
14. Qg4 {[%clk 0:02:52.5]} 14... Kh8 {[%clk 0:02:35.4]} 15. a3 {[%clk
0:02:48.2]} 15... Be7 {[%clk 0:02:34.5]} 16. Rxf8+ {[%clk 0:02:47.7]} 16... Rxf8
{[%clk 0:02:34.1]} 17. Rf1 {[%clk 0:02:49]} 17... Rxf1+ {[%clk 0:02:32]} 18.
Kxf1 {[%clk 0:02:50]} 18... Qd8 {[%clk 0:01:49.6]} 19. Qe6 {[%clk 0:02:45.4]}
19... Nd4 {[%clk 0:01:47.6]} 20. Bxd4 {[%clk 0:02:35.5]} 20... exd4 {[%clk
0:01:47.4]} 21. Ke2 {[%clk 0:02:36.8]} 21... h6 {[%clk 0:01:38.2]} 22. g3 {[%clk
0:02:35.8]} 22... Kh7 {[%clk 0:01:10.3]} 23. Qf5+ {[%clk 0:02:34.4]} 23... Kg8
{[%clk 0:01:10.1]} 24. h4 {[%clk 0:02:33.4]} 24... Qf8 {[%clk 0:01:02.1]} 25.
Qe6+ {[%clk 0:02:27]} 25... Kh8 {[%clk 0:01:01.4]} 26. h5 {[%clk 0:02:27.4]}
26... Bd6 {[%clk 0:00:56.8]} 27. a4 {[%clk 0:02:12.7]} 27... b6 {[%clk
0:00:37.6]} 28. b3 {[%clk 0:02:13.2]} 28... Qd8 {[%clk 0:00:36.4]} 29. Kf3
{[%clk 0:02:05.3]} 29... Bb4 {[%clk 0:00:37.1]} 30. Kg4 {[%clk 0:02:03.6]} 30...
Ba3 {[%clk 0:00:33.8]} 31. Kf5 {[%clk 0:02:00]} 31... Kh7 {[%clk 0:00:27.1]} 32.
Qg6+ {[%clk 0:01:51.8]} 32... Kh8 {[%clk 0:00:28.1]} 33. Qe6 {[%clk 0:01:52.3]}
33... Kh7 {[%clk 0:00:29]} 34. Kg4 {[%clk 0:01:52.1]} 34... Bc1 {[%clk
0:00:26.2]} 35. Qf5+ {[%clk 0:01:52.2]} 35... Kh8 {[%clk 0:00:26.4]} 36. a5
{[%clk 0:01:49]} 36... Qe7 {[%clk 0:00:25.4]} 37. a6 {[%clk 0:01:46.2]} 37... c5
{[%clk 0:00:23.4]} 38. Kf3 {[%clk 0:01:43.1]} 38... Kg8 {[%clk 0:00:21.3]} 39.
Qc8+ {[%clk 0:01:43.2]} 39... Qf8+ {[%clk 0:00:22]} 40. Qxf8+ {[%clk 0:01:43.6]}
40... Kxf8 {[%clk 0:00:23.9]} 41. Kg4 {[%clk 0:01:44.7]} 41... Ke7 {[%clk
0:00:24]} 42. Kf5 {[%clk 0:01:46.1]} 42... Be3 {[%clk 0:00:23.3]} 43. Kg6 {[%clk
0:01:46.6]} 43... Kf8 {[%clk 0:00:21.6]} 44. Nd6 {[%clk 0:01:47.4]} 1-0